bitfinex-derivatives/quotes_ETHF0:USTF0_20250130
["timestamp","ask_amount","ask_price","bid_price","bid_amount"]
[1738251457069,0.24656298,3271.5,3271.4,0.61132]
[1738251457270,0.61126,3271.8,3271.2,0.61136]
[1738251457471,0.61129,3271.6,3271.3,0.5354]
[1738251457670,0.61131,3271.5,3271.3,1.14673]
[1738251458069,0.61132,3271.4,3271.1,0.61595483]
[1738251458263,0.6113,3271.6,3271.2,0.61134]
[1738251458459,0.00458483,3271.7,3271.2,0.61136]
[1738251458665,0.61586483,3271.7,3271.4,0.61132]
[1738251458869,0.61129,3271.6,3271.3,0.61133]
[1738251459067,0.61585483,3271.7,3271.4,0.61131]
[1738251459463,0.61129,3271.6,3271.3,0.61133]
[1738251459678,6.3674183,3271.6,3271.1,0.00458483]
[1738251459888,0.61136,3271.3,3271.1,0.00458483]
[1738251460173,3.81916,3271.2,3271.1,0.00458483]
[1738251460366,6.9787783,3271.2,3271.1,0.00458483]
[1738251460568,6.3674183,3271.2,3271.1,0.00458483]
[1738251460767,3.2078,3271.2,3271.1,0.61445569]
[1738251460977,3.2078,3271.2,3271.1,0.00307569]
[1738251461774,6.3674183,3271.2,3271.1,0.00307569]
[1738251462075,6.3674183,3271.6,3271.1,0.00307569]
[1738251462273,6.6096985,3271.6,3271.1,0.00307569]
[1738251462670,6.6096985,3271.6,3271.4,0.61131]
[1738251462973,6.6096985,3271.6,3271.1,0.00307569]
[1738251463175,6.6096985,3271.6,3271.3,0.61134]
[1738251463567,6.6096985,3271.6,3271.1,0.00307569]
[1738251464178,6.3674183,3271.2,3271.1,0.00307569]
[1738251465081,6.9787783,3271.2,3271.1,0.00307569]
[1738251465267,6.9787783,3271.2,3270.1,0.5045]
[1738251465268,6.3674183,3271.2,3270.1,0.5045]
[1738251465472,3.1596183,3270.6,3269.8,0.5114]
[1738251465675,3.1596183,3270.2,3269.4,0.9939]
[1738251465980,3.1596183,3269.8,3269.3,3.2078]
[1738251466565,4.2928,3269.9,3269.0,0.55872224]
[1738251466566,0.61172,3269.3,3269.0,0.55872224]
[1738251466766,0.61175,3269.2,3268.9,0.5045]
[1738251467072,0.61179,3268.9,3268.6,0.61184]
[1738251467272,3.1596183,3269.0,3268.8,0.6118]
[1738251467478,3.2078,3269.1,3268.9,0.61179]
[1738251467679,3.2078,3269.5,3269.4,0.6117]
[1738251467883,3.81949,3269.5,3269.2,0.61172]
[1738251468075,3.81949,3269.5,3269.3,0.61171]
[1738251468275,3.2078,3269.5,3269.3,0.61171]
[1738251468670,3.2078,3269.5,3269.4,0.6117]
[1738251469075,3.6939183,3269.8,3269.1,3.2078]
[1738251469076,4.2446183,3269.8,3269.1,3.2078]
[1738251469277,4.2446183,3269.8,3269.3,0.61171]
[1738251469278,0.61167,3269.6,3269.3,0.61171]
[1738251469579,3.1596183,3269.4,3269.1,3.2078]
[1738251469773,3.1596183,3269.4,3268.1,4.6894583]
[1738251469774,0.61172,3269.3,3268.8,0.61181]
[1738251469972,0.61178,3269.0,3268.8,0.61181]
[1738251470276,0.61178,3269.0,3268.4,3.2078]
[1738251470277,0.61174,3269.2,3268.9,0.61179]
[1738251470579,4.2994183,3269.4,3269.1,0.61174]
[1738251470773,5.3844183,3269.4,3269.0,0.61176]
[1738251470974,0.61174,3269.2,3268.8,0.6118]
[1738251471276,0.61174,3269.2,3268.4,3.2078]
[1738251471577,0.61174,3269.2,3268.9,0.61179]
[1738251471780,4.7727183,3269.4,3269.0,0.61177]
[1738251472674,0.61172,3269.3,3268.9,0.61178]
[1738251472872,4.7727183,3269.4,3268.4,3.2078]
[1738251473079,5.3844183,3269.4,3269.0,0.61176]
[1738251473274,4.7727183,3269.4,3268.4,4.7375]
[1738251473581,5.3844183,3269.4,3269.0,0.61177]
[1738251473780,4.7727183,3269.4,3268.4,4.7375]
[1738251474077,5.3844283,3269.4,3269.0,0.61177]
[1738251474273,0.61173,3269.3,3268.9,0.61179]
[1738251474472,4.7727183,3269.4,3268.4,3.2078]
[1738251474675,5.3844283,3269.4,3269.0,0.61176]
[1738251475081,0.61172,3269.3,3268.4,3.2078]
[1738251475282,0.61172,3269.3,3268.8,0.6118]
[1738251475481,0.61172,3269.3,3268.4,3.2078]
[1738251475685,5.3844183,3269.4,3268.9,0.61179]
[1738251476484,3.1596183,3269.0,3268.4,3.2078]
[1738251476683,3.1596183,3269.0,3268.8,0.61181]
[1738251477584,3.1596183,3269.0,3268.9,0.61179]
[1738251477785,3.1596183,3269.0,3268.4,3.2078]
[1738251478681,0.61181,3268.9,3268.5,0.61186]
[1738251479181,0.61179,3268.9,3268.5,0.61185]
[1738251480189,4.2456183,3269.0,3268.9,0.61179]
[1738251480487,4.2456183,3269.0,3268.4,3.2078]
[1738251480785,3.1596183,3269.0,3268.9,0.61179]
[1738251481186,3.40014955,3269.4,3269.3,0.61172]
[1738251481581,3.40014955,3269.4,3268.8,3.2078]
[1738251481582,3.1596183,3269.8,3269.0,1.5294]
[1738251481782,0.00458483,3269.9,3269.2,3.2078]
[1738251481976,3.81947,3269.6,3269.1,1.0622]
[1738251482177,3.1596183,3269.4,3268.7,3.2078]
[1738251482485,4.8563283,3269.4,3269.1,0.61175]
[1738251482685,4.2446183,3269.4,3268.6,0.5271]
[1738251482888,4.2446183,3269.4,3269.1,0.61174]
[1738251483083,3.2078,3269.2,3268.6,0.5271]
[1738251483291,3.1596183,3269.0,3268.7,0.61182]
[1738251483482,3.1596183,3269.0,3268.9,0.61179]
[1738251483787,6.3674183,3269.0,3268.8,0.6118]
[1738251483988,6.3674183,3269.0,3268.3,3.2078]
[1738251484185,6.3674183,3269.0,3268.9,0.61179]
[1738251484385,3.2078,3269.0,3268.9,0.61179]
[1738251484687,3.2078,3269.0,3268.3,3.2078]
[1738251484688,6.3674183,3269.0,3268.7,0.61181]
[1738251484884,6.3674183,3269.0,3268.8,0.6118]
[1738251485083,6.9791983,3269.0,3268.7,0.61182]
[1738251485283,6.3674183,3269.0,3268.8,0.6118]
[1738251485690,6.3674183,3269.0,3268.3,3.2078]
[1738251485878,6.3674183,3269.0,3268.9,0.61179]
[1738251486083,6.3674183,3269.0,3268.3,1.52976]
[1738251486279,6.3674183,3269.0,3268.2,1.0457]
[1738251486479,1.32558378,3269.4,3268.2,1.0457]
[1738251486480,6.3674183,3268.6,3268.2,1.0457]
[1738251486684,6.9792783,3268.6,3268.3,0.61189]
[1738251487092,6.97728812,3268.6,3268.3,0.61189]
[1738251487293,6.36542812,3268.6,3268.4,0.61188]
[1738251487494,6.97727812,3268.6,3268.3,0.61189]
[1738251487694,6.36542812,3268.6,3268.3,0.61189]
[1738251487896,6.36542812,3268.6,3268.4,0.61188]
[1738251488092,6.36542812,3268.6,3268.2,0.526]
[1738251488293,0.61187,3268.5,3268.2,1.13791]
[1738251488487,6.97727812,3268.6,3268.3,0.61189]
[1738251488890,6.36542812,3268.6,3268.4,0.61188]
[1738251489099,6.97727812,3268.6,3268.4,0.61188]
[1738251489294,6.36542812,3268.6,3268.4,0.61188]
[1738251489496,6.97727812,3268.6,3268.4,0.61188]
[1738251489696,6.36542812,3268.6,3268.4,0.61188]
[1738251489994,0.61188,3268.5,3268.2,1.1379]
[1738251490293,0.6119,3268.4,3268.1,0.61193]
[1738251490496,6.61333492,3268.6,3268.4,0.61187]
[1738251490693,6.61333492,3268.6,3268.5,0.61187]
[1738251490896,6.61333492,3268.6,3267.7,2.01863]
[1738251491200,6.61333492,3268.6,3267.7,2.01864]
[1738251491396,6.36542812,3268.6,3268.5,0.61187]
[1738251491898,6.97728812,3268.6,3268.3,0.61189]
[1738251492096,6.36542812,3268.6,3267.7,2.01864]
[1738251492289,6.36542812,3268.6,3268.4,0.61188]
[1738251492487,6.36542812,3268.6,3267.7,1.53004]
[1738251492895,6.36542812,3268.6,3268.4,0.61188]
[1738251493094,6.36542812,3268.6,3267.7,1.53004]
[1738251493304,6.36542812,3268.6,3267.9,1.52991]
[1738251493499,6.36542812,3268.6,3268.4,0.61188]
[1738251493696,6.36542812,3268.6,3268.5,0.61187]
[1738251493900,3.20580982,3268.6,3268.5,0.41018266]
[1738251494902,6.36542812,3268.6,3268.0,3.2078]
[1738251495105,0.61193,3268.2,3268.0,3.81975]
[1738251495605,0.61193,3268.2,3268.1,0.61194]
[1738251495802,0.61194,3268.1,3268.0,3.81976]
[1738251496109,0.61193,3268.2,3268.0,3.81976]
[1738251496307,0.61194,3268.1,3268.0,0.61196]
[1738251496716,0.61197,3268.0,3267.6,1.0216]
[1738251496908,3.2078,3268.2,3267.7,0.61201]
[1738251496909,0.612,3267.8,3267.7,0.61201]
[1738251497107,1.58528483,3268.1,3267.6,0.5346]
[1738251497305,0.61196,3268.0,3267.7,0.61201]
[1738251497510,0.61201,3267.8,3267.7,0.61201]
[1738251497803,6.3674183,3267.8,3267.1,0.5135]
[1738251498003,6.3674183,3267.8,3267.7,0.61201]
[1738251498405,3.2078,3267.8,3267.7,0.61201]
[1738251499712,0.61203,3267.7,3267.6,0.61203]
[1738251499896,6.3674183,3267.8,3267.1,0.5062]
[1738251500101,3.1596183,3267.4,3267.1,0.5062]
[1738251500499,6.3674183,3267.4,3266.6,3.2078]
[1738251500815,3.1596183,3267.0,3266.6,3.2078]
[1738251501106,3.1596183,3267.0,3266.4,1.057]
[1738251501307,3.1596183,3267.0,3266.9,0.61216]
[1738251501618,0.61212,3267.2,3267.1,0.61213]
[1738251501907,6.3674183,3267.4,3266.5,3.2078]
[1738251502111,4.2456183,3267.8,3266.6,3.67332]
[1738251502308,3.1596183,3267.8,3267.7,0.61201]
[1738251503906,3.2078,3267.9,3267.4,0.5055]
[1738251504103,3.2078,3267.9,3267.8,0.612]
[1738251505207,3.2078,3267.9,3267.4,1.0402]
[1738251505415,3.2078,3267.9,3267.8,0.612]
[1738251505910,3.2078,3267.9,3267.4,1.0402]
[1738251506110,3.1596183,3267.8,3267.4,1.0402]
[1738251506412,3.1596183,3267.8,3267.1,1.53028]
[1738251506605,3.1596183,3267.8,3267.6,0.61202]
[1738251506812,3.7716183,3267.8,3267.6,0.61202]
[1738251507206,3.1596183,3267.8,3267.1,0.5098]
[1738251507412,3.1596183,3267.4,3267.1,0.5098]
[1738251507605,0.61209,3267.3,3266.8,0.61217]
[1738251507802,3.1596183,3266.9,3266.8,0.61217]
[1738251509201,3.2078,3267.1,3267.0,0.61215]
[1738251509405,3.1596183,3267.3,3266.5,0.4913]
[1738251509710,3.1596183,3267.3,3267.2,0.61211]
[1738251509910,3.1596183,3267.3,3266.5,0.4913]
[1738251509911,3.1596183,3267.3,3267.1,0.61212]
[1738251510112,4.02237475,3267.3,3267.1,0.61212]
[1738251510307,4.02237475,3267.3,3267.0,0.61213]
[1738251510608,7.23017475,3267.3,3267.0,0.61213]
[1738251510807,6.61808475,3267.3,3267.1,0.61212]
[1738251511008,6.3674183,3267.3,3267.2,0.609057]
[1738251511319,6.8638183,3267.7,3266.9,0.61216]
[1738251511504,3.2078,3267.7,3267.6,0.61203]
[1738251515016,3.2078,3267.7,3267.4,0.5206]
[1738251515212,6.3674183,3267.7,3267.4,0.5206]
[1738251515416,6.3674183,3267.7,3267.6,0.61203]
[1738251515417,6.9794483,3267.7,3267.6,0.61203]
[1738251515618,0.61204,3267.6,3267.5,0.61204]
[1738251516118,0.61205,3267.5,3267.4,0.61206]
[1738251516319,6.3674183,3267.7,3266.9,1.0196]
[1738251516617,3.7717183,3267.3,3267.2,0.61211]
[1738251517020,0.61211,3267.2,3267.1,0.61211]
[1738251517611,3.1596183,3267.3,3266.9,0.5232]
[1738251518016,3.1596183,3267.3,3267.2,0.61211]
[1738251518318,3.1596183,3267.3,3266.9,0.5232]
[1738251518817,6.3674183,3267.3,3266.9,0.5232]
[1738251519020,6.3674183,3267.3,3266.5,1.53059]
[1738251519219,6.3674183,3267.3,3266.3,2.03648]
[1738251519527,6.3674183,3267.3,3267.0,0.61213]
[1738251519826,6.3674183,3267.3,3267.2,0.61211]
[1738251520724,6.3674183,3267.3,3266.3,0.5058]
[1738251520925,3.1596183,3266.9,3266.8,0.61218]
[1738251521119,6.3674183,3266.9,3266.1,0.4907]
[1738251521424,0.5076,3266.8,3266.4,0.61225]
[1738251521629,0.5076,3266.8,3266.7,0.6122]
[1738251521813,6.3674183,3266.9,3266.1,0.4907]
[1738251522215,3.1596183,3266.5,3266.1,0.4907]
[1738251522621,3.1596183,3266.5,3266.3,0.61227]
[1738251523119,3.1596183,3266.5,3266.1,0.4907]
[1738251523319,3.1596183,3266.5,3265.9,3.2078]
[1738251523515,3.1596183,3266.5,3266.0,0.61232]
[1738251523516,0.61231,3266.2,3266.0,0.61232]
[1738251523725,0.61231,3266.2,3265.9,3.2078]
[1738251523726,0.61229,3266.3,3266.1,0.61231]
[1738251523918,0.6123,3266.2,3266.1,0.61231]
[1738251524118,0.61229,3266.3,3266.1,0.61231]
[1738251524521,0.61231,3266.2,3266.1,0.61231]
[1738251524729,0.6123,3266.2,3266.1,0.61231]
[1738251526328,3.21239193,3266.4,3266.3,0.61228]
[1738251526721,0.61237,3265.8,3265.7,0.5262]
[1738251526923,3.1596183,3265.9,3265.0,0.5179]
[1738251527232,0.6125,3265.2,3265.0,1.13041]
[1738251527429,0.6125,3265.1,3264.9,3.2078]
[1738251527633,6.3674183,3265.5,3264.9,3.2078]
[1738251527938,0.61248,3265.3,3265.2,0.61247]
[1738251528130,0.61251,3265.1,3265.0,0.61251]
[1738251528437,6.3674183,3265.5,3264.5,1.006]
[1738251528837,0.6125,3265.1,3265.0,0.61251]
[1738251529033,0.61254,3265.0,3264.8,0.61254]
[1738251529433,0.61251,3265.1,3264.9,0.61253]
[1738251529635,0.61252,3265.0,3264.5,1.006]
[1738251529837,0.61251,3265.1,3264.7,0.61256]
[1738251530036,0.61247,3265.3,3264.5,1.006]
[1738251530333,0.61245,3265.4,3265.1,0.61249]
[1738251530533,0.61247,3265.3,3264.8,3.2078]
[1738251530733,0.61248,3265.3,3264.8,3.2078]
[1738251530939,0.61248,3265.3,3265.2,0.61248]
[1738251531137,6.61364237,3265.5,3264.8,3.2078]
[1738251531438,0.61255,3264.9,3264.5,1.006]
[1738251531637,6.3674183,3265.1,3264.5,1.006]
[1738251531838,0.61255,3264.9,3264.5,1.006]
[1738251532037,6.3674183,3265.1,3264.5,1.006]
[1738251532237,0.61254,3264.9,3264.8,0.61255]
[1738251532443,6.3674183,3265.1,3264.8,0.61255]
[1738251532644,0.61254,3264.9,3264.8,0.61255]
[1738251532937,3.2078,3265.1,3265.0,0.61252]
[1738251533542,3.2078,3265.1,3264.5,1.006]
[1738251533747,0.61257,3264.8,3264.7,0.61257]
[1738251533945,6.3674183,3265.1,3264.5,0.4881]
[1738251534244,0.61257,3264.8,3264.6,0.61258]
[1738251534444,6.3674183,3265.1,3264.5,0.4881]
[1738251534745,0.532,3265.6,3265.5,0.61243]
[1738251535643,3.1596183,3265.9,3265.8,0.61237]
[1738251536142,3.7719683,3265.9,3265.7,0.61238]
[1738251536348,3.1596183,3265.9,3265.7,0.61238]
[1738251537044,3.1596183,3265.9,3265.5,0.4997]
[1738251537354,3.2078,3266.1,3265.5,0.4997]
[1738251537546,3.2078,3266.1,3265.9,0.61233]
[1738251537749,3.82013,3266.1,3265.8,0.61237]
[1738251538246,3.2078,3266.1,3265.9,0.61233]
[1738251538441,3.2078,3266.1,3265.5,0.4997]
[1738251538646,0.61237,3265.8,3265.5,0.4997]
[1738251538843,0.61237,3265.8,3265.6,0.61241]
[1738251539043,0.61237,3265.8,3265.5,1.11211]
[1738251539246,3.1596183,3265.9,3265.5,0.4997]
[1738251539548,3.7719783,3265.9,3265.5,0.4997]
[1738251539742,3.1596183,3265.9,3265.8,0.61237]
[1738251540147,0.00459193,3266.4,3265.7,3.2078]
[1738251540357,0.00459193,3266.4,3266.3,0.61228]
[1738251541342,0.00459193,3266.4,3266.1,3.2078]
[1738251541550,0.00459193,3266.4,3266.3,0.61228]
[1738251541749,0.00459193,3266.4,3266.2,0.61229]
[1738251542045,0.00459193,3266.4,3266.1,3.2078]
[1738251542246,0.00459193,3266.4,3266.3,0.61228]
[1738251544345,3.7342,3267.2,3266.4,1.53061]
[1738251544544,3.7342,3267.2,3267.0,0.61214]
[1738251544746,0.61214,3267.1,3266.8,0.61217]
[1738251545047,4.34632,3267.2,3266.9,0.61216]
[1738251545252,4.34632,3267.2,3266.3,1.5307]
[1738251545253,3.97858271,3267.2,3266.4,0.61226]
[1738251545447,3.97858271,3267.2,3266.9,0.61215]
[1738251545647,4.59069271,3267.2,3266.9,0.61215]
[1738251546252,3.97858271,3267.2,3267.0,0.61214]
[1738251546453,3.97858271,3267.2,3266.7,0.00459193]
[1738251546651,3.16958713,3266.9,3266.1,3.2078]
[1738251546860,3.2078,3266.8,3266.1,3.2078]
[1738251547048,3.78183713,3266.5,3266.2,0.61229]
[1738251547444,3.16958713,3266.5,3266.1,3.2078]
[1738251547747,1.11376,3266.4,3266.1,3.2078]
[1738251547955,0.6123,3266.2,3265.9,0.61234]
[1738251548658,3.7093,3266.4,3265.9,1.53089]
[1738251548855,3.7093,3266.4,3266.3,0.61228]
[1738251549252,0.5015,3266.4,3266.3,0.61228]
[1738251549453,3.16958713,3266.9,3266.8,0.61218]
[1738251549656,4.02966688,3266.9,3266.3,0.61228]
[1738251549851,4.02966688,3266.9,3266.2,1.53075]
[1738251550168,0.6122,3266.8,3266.5,0.61223]
[1738251550457,0.61224,3266.5,3266.3,0.61227]
[1738251550852,3.2078,3266.8,3266.4,0.61225]
[1738251551052,0.61225,3266.5,3266.3,0.61227]
[1738251551253,3.16958713,3266.5,3265.8,0.503]
[1738251551455,4.2366,3266.4,3265.7,3.2078]
[1738251551748,3.2078,3266.4,3266.3,0.61228]
[1738251551953,4.50249688,3266.9,3266.1,4.73859]
[1738251552154,0.24790975,3266.9,3266.8,0.61218]
[1738251552349,3.81995,3267.0,3266.9,0.61216]
[1738251552350,3.2078,3267.0,3266.9,0.61216]
[1738251552552,0.25269826,3267.4,3266.7,3.2078]
[1738251552860,3.16958713,3267.3,3266.3,3.2078]
[1738251553059,0.61212,3267.2,3266.5,2.14281]
[1738251553250,3.16958713,3267.3,3266.7,0.61219]
[1738251553251,0.61218,3266.9,3266.7,0.61219]
[1738251553556,3.2078,3267.1,3266.3,3.2078]
[1738251553750,0.61222,3266.7,3266.5,0.61223]
[1738251553951,3.2078,3267.1,3266.3,3.2078]
[1738251554161,3.2078,3267.1,3267.0,0.61215]
[1738251554364,3.16958713,3267.3,3266.7,3.2078]
[1738251554549,3.16958713,3267.3,3267.2,0.61211]
[1738251554861,0.00459193,3267.4,3267.3,0.61209]
[1738251555653,0.00459193,3267.4,3267.3,1.68449]
[1738251555846,3.2078,3267.9,3267.8,0.612]
[1738251557364,3.16958713,3268.1,3267.5,0.00459193]
[1738251557652,3.16958713,3268.1,3268.0,0.61196]
[1738251558457,0.00459193,3268.2,3268.1,0.61194]
[1738251559759,0.00459193,3268.2,3268.1,2.14704]
[1738251560960,1.93e-06,3268.2,3268.1,2.14704]
[1738251564661,1.93e-06,3268.2,3268.1,9.75821386]
[1738251569367,2.61117386,3270.1,3268.1,11.75744772]
[1738251569665,0.4966,3270.2,3270.1,0.61156]
[1738251569858,3.2078,3270.5,3269.8,0.5281]
[1738251570054,3.2078,3270.5,3270.4,0.61151]
[1738251570258,2.61117386,3271.0,3270.3,3.2078]
[1738251570455,0.24676771,3271.0,3270.6,1.52868]
[1738251570658,0.00459193,3271.0,3270.6,1.52868]
[1738251570863,0.00459193,3271.0,3270.9,0.61142]
[1738251575069,1.93e-06,3271.0,3270.9,0.61142]
[1738251578762,1.93e-06,3271.0,3270.9,5.61142]
[1738251578963,0.5283,3272.4,3272.3,0.61115]
[1738251580871,3.2078,3272.5,3272.0,0.00458477]
[1738251581062,0.00458477,3272.7,3272.6,0.6111]
[1738251583568,6.37291828,3272.7,3272.0,1.53261477]
[1738251583775,3.16053351,3272.4,3272.0,1.53261477]
[1738251583968,0.5337,3272.3,3272.2,0.61117]
[1738251584171,1.0647,3272.3,3272.2,0.61117]
[1738251586074,4.88365,3272.3,3272.1,0.61119]
[1738251586273,4.7866,3272.3,3272.0,0.00458477]
[1738251586576,4.7866,3272.3,3272.2,0.61117]
[1738251586781,4.7866,3272.3,3272.1,0.61118]
[1738251587173,4.7866,3272.3,3272.2,0.61117]
[1738251587679,4.2725,3272.3,3272.2,0.61117]
[1738251589278,4.52153602,3272.3,3272.2,0.61117]
[1738251592180,4.52153602,3272.3,3272.0,0.00458477]
[1738251592382,4.52153602,3272.3,3272.1,0.61118]
[1738251592586,4.52153602,3272.3,3272.0,0.00458477]
[1738251592587,2.60763453,3272.2,3272.0,0.00458477]
[1738251592781,2.60763453,3271.7,3271.6,0.61127]
[1738251593674,4.52153602,3272.3,3271.6,3.2078]
[1738251593983,4.52153602,3272.3,3272.2,0.61117]
[1738251594179,4.2725,3272.3,3272.2,0.61117]
[1738251594377,6.88013453,3272.3,3272.2,0.61117]
[1738251595085,6.88013453,3272.3,3271.7,1.52817]
[1738251595377,6.88013453,3272.3,3272.2,0.61117]
[1738251595781,6.88013453,3272.3,3271.7,1.52817]
[1738251595979,6.88013453,3272.3,3272.1,0.61118]
[1738251596186,6.88013453,3272.3,3271.6,3.2078]
[1738251596385,3.21887453,3271.9,3271.7,0.61126]
[1738251596580,0.61128,3271.7,3271.5,0.61129]
[1738251596788,2.60763453,3271.6,3271.5,0.61129]
[1738251596984,3.12963453,3271.6,3271.5,0.61129]
[1738251597182,0.522,3271.6,3271.5,0.61129]
[1738251597687,3.2078,3271.8,3271.7,0.61127]
[1738251598584,3.2078,3271.8,3271.1,1.52845]
[1738251598790,3.81906,3271.8,3271.6,0.61128]
[1738251599086,0.6113,3271.6,3271.4,0.61132]
[1738251599383,2.60763453,3271.5,3271.4,0.61132]
[1738251599689,6.42669453,3271.8,3271.0,1.52846]
[1738251599988,6.42669453,3271.8,3271.6,0.61127]
[1738251600380,0.61127,3271.7,3271.5,0.61129]
[1738251600581,5.81543453,3271.8,3270.9,2.02393]
[1738251600887,2.60763453,3271.8,3271.7,0.61127]
[1738251601084,3.7298,3272.2,3271.5,1.52827]
[1738251601382,2.60763453,3271.8,3271.7,0.61127]
[1738251601582,2.60763453,3272.1,3272.0,0.61121]
[1738251603686,2.60763453,3272.1,3271.5,0.4861]
[1738251603893,2.60763453,3271.8,3271.2,5.23348]
[1738251604088,2.60763453,3272.1,3271.2,3.7051]
[1738251604387,2.60763453,3272.1,3272.0,0.61121]
[1738251604784,2.60763453,3272.1,3271.2,5.23346]
[1738251604785,0.61122,3272.0,3271.8,0.61124]
[1738251604977,2.60763453,3272.1,3271.6,0.61128]
[1738251604978,0.61126,3271.8,3271.6,0.61128]
[1738251605290,2.60763453,3271.8,3271.2,5.23346]
[1738251605588,2.60763453,3272.1,3272.0,0.61121]
[1738251605782,2.60763453,3272.1,3271.4,1.52831]
[1738251605783,0.61121,3272.0,3271.4,1.52831]
[1738251605991,2.60763453,3271.8,3271.7,0.61125]
[1738251606683,0.61121,3272.0,3271.9,0.61122]
[1738251606881,3.7298,3272.2,3271.6,1.52819]
[1738251607083,3.2078,3272.2,3272.1,0.61119]
[1738251607384,3.2078,3272.2,3271.7,0.5066]
[1738251607691,2.60763453,3272.1,3272.0,0.6112]
[1738251608389,2.60763453,3272.1,3272.0,0.61121]
[1738251609193,3.2078,3272.2,3272.1,0.61119]
[1738251609584,2.60763453,3272.4,3272.3,0.61115]
[1738251610081,0.00458477,3272.7,3272.6,0.6111]
[1738251614086,3.2078,3273.8,3272.6,5.0]
[1738251614388,3.2078,3273.8,3273.7,0.61089]
[1738251614585,3.2078,3273.8,3273.1,4.73527]
[1738251614586,3.2078,3273.8,3273.1,3.2078]
[1738251614781,0.61095,3273.5,3273.3,0.61096]
[1738251615288,0.00458477,3273.7,3273.1,3.21238477]
[1738251615586,0.00458477,3273.7,3273.6,0.61091]
[1738251618797,0.00458477,3273.7,3273.3,0.61097]
[1738251619095,3.21857453,3273.5,3273.2,0.61098]
[1738251619294,3.21857453,3273.5,3273.4,0.61095]
[1738251619295,2.60763453,3273.5,3273.4,0.61095]
[1738251619894,3.21857453,3273.5,3273.2,0.61098]
[1738251620088,2.60763453,3273.5,3273.1,0.00458477]
[1738251620288,2.60763453,3273.5,3273.3,0.61096]
[1738251620692,2.60763453,3273.5,3273.4,0.61095]
[1738251620894,0.61095,3273.4,3273.2,0.61098]
[1738251621295,2.60763453,3273.5,3273.2,0.61098]
[1738251621495,3.21857453,3273.5,3273.3,0.61097]
[1738251621699,2.60763453,3273.5,3273.1,0.00458477]
[1738251621894,0.00458477,3273.7,3273.6,0.61091]
[1738251623092,0.00458477,3273.7,3273.6,3.81871]
[1738251625498,0.00458477,3273.7,3273.6,3.2078]
[1738251625695,0.00458477,3273.7,3273.6,0.61091]
[1738251625897,0.61092,3273.6,3273.5,0.61092]
[1738251626097,3.21855453,3273.6,3273.5,0.61092]
[1738251626396,2.60763453,3273.6,3273.5,0.61093]
[1738251628794,0.61096,3273.4,3273.2,0.61099]
[1738251628994,3.21860453,3273.3,3273.2,0.61099]
[1738251629189,2.60763453,3273.3,3273.2,0.61099]
[1738251630487,2.60763453,3273.3,3273.1,3.21238477]
[1738251630488,0.00458477,3273.7,3273.1,3.21238477]
[1738251630688,0.00458477,3273.7,3273.6,0.61091]
[1738251631597,0.00458477,3273.7,3273.6,2.14431]
[1738251639200,0.61548477,3273.7,3273.6,0.61091]
[1738251639397,0.61548477,3273.7,3273.1,0.00458477]
[1738251639398,0.00458477,3273.7,3273.1,0.00458477]
[1738251639697,0.61097,3273.4,3273.3,0.61095]
[1738251639900,2.60763453,3273.5,3273.4,0.61095]
[1738251640102,0.00458477,3273.7,3273.6,0.61091]
[1738251640305,3.2078,3275.1,3273.5,0.5026]
[1738251640508,3.2078,3275.1,3275.0,0.61065]
[1738251640703,3.2078,3275.1,3275.0,0.41020955]
[1738251640905,3.2078,3275.1,3274.5,4.73462]
[1738251641208,3.2078,3275.1,3275.0,0.61065]
[1738251641401,3.21238477,3275.1,3275.0,0.61065]
[1738251644998,3.21238477,3275.1,3274.5,6.8802101]
[1738251645209,3.82302477,3275.1,3274.5,3.7273]
[1738251645507,3.21238477,3275.1,3275.0,0.61065]
[1738251645711,0.00458477,3275.1,3274.5,3.7273]
[1738251645914,0.00458477,3275.1,3275.0,0.61065]
[1738251646209,0.00458477,3275.1,3275.0,3.81845]
[1738251647403,0.00809204,3275.1,3275.0,3.81845]
[1738251648112,4.2339101,3276.1,3275.0,3.81845]
[1738251648113,3.2078,3276.0,3275.9,0.61048]
[1738251648606,3.6953,3276.6,3275.9,3.2078]
[1738251648812,3.6953,3276.6,3276.5,0.61037]
[1738251649507,3.6953,3276.6,3276.4,0.61039]
[1738251649508,3.2078,3276.6,3276.4,0.61039]
[1738251649714,0.61038,3276.5,3276.2,0.61500477]
[1738251649901,0.61041,3276.3,3276.2,0.00458477]
[1738251650107,3.2078,3276.6,3276.2,0.00458477]
[1738251650306,0.61041,3276.3,3276.2,0.00458477]
[1738251650708,0.61039,3276.4,3276.2,0.00458477]
[1738251651009,0.61041,3276.3,3276.2,0.00458477]
[1738251653016,5.0,3276.3,3274.9,3.2078]
[1738251653321,3.1529101,3275.7,3274.9,3.2078]
[1738251653616,0.4862,3275.6,3275.4,0.61056]
[1738251653817,3.81823,3276.2,3275.7,0.61052]
[1738251654019,3.2078,3276.2,3275.5,3.2078]
[1738251654313,3.2078,3276.2,3276.0,0.61046]
[1738251654314,0.4862,3276.1,3276.0,0.61046]
[1738251654615,1.09665,3276.1,3275.8,0.61048]
[1738251654819,0.4862,3276.1,3275.9,0.61047]
[1738251655019,0.4862,3276.1,3276.0,0.61046]
[1738251655517,0.4862,3276.1,3275.6,1.56018477]
[1738251655712,0.4862,3276.1,3275.8,0.6105]
[1738251655915,3.2078,3276.2,3275.6,1.03488477]
[1738251656118,3.1529101,3275.9,3275.6,0.00458477]
[1738251656316,0.61052,3275.8,3275.6,0.00458477]
[1738251656525,0.61052,3275.7,3275.6,0.00458477]
[1738251657115,3.1529101,3276.4,3275.6,0.00458477]
[1738251657319,4.1781101,3276.8,3276.7,0.61033]
[1738251657516,0.5315,3276.8,3276.3,3.2078]
[1738251657716,3.2078,3277.0,3276.4,1.0093]
[1738251657916,3.2078,3277.0,3276.8,0.61031]
[1738251658219,3.2078,3277.0,3276.5,0.5111]
[1738251658220,0.61037,3276.6,3275.9,3.2078]